[Event "23rd Alekhine Master 2019"]
[Site "Voronezh"]
[Date "2019.06.19"]
[Round "7.11"]
[White "Schekachikhin, Maksim"]
[Black "Iljiushenok, Ilia"]
[Result "1/2-1/2"]
[ECO "A45"]
[WhiteElo "2424"]
[BlackElo "2549"]
[Annotator "ChessBase"]
[PlyCount "148"]
[EventDate "2019.06.12"]
[EventType "swiss"]
[EventCountry "RUS"]
[SourceTitle "playchess.com"]
[Source "ChessBase"]
[SourceQuality "1"]
[TimeControl "40/5400+30:1800+30"]

1. d4 {[%emt 0:00:00]} Nf6 {[%emt 0:01:31]} 2. Bg5 {[%emt 0:00:00]} Ne4 {[%emt 0:01:38]} 3. Bf4 {[%emt 0:00:30]} c5 {[%emt 0:06:21]} 4. f3 {[%emt 0:00:58]} Qa5+ {[%emt 0:00:04]} 5. c3 {[%emt 0:00:41]} Nf6 {[%emt 0:00:05]} 6. d5 {[%emt 0:00:18]} e6 {[%emt 0:01:16]} 7. e4 {[%emt 0:00:35]} exd5 {[%emt 0:00:27]} 8. exd5 {[%emt 0:00:27]} d6 {[%emt 0:00:22]} 9. Na3 {[%emt 0:00:52]} Be7 {[%emt 0:02:04]} 10. Ne2 {[%emt 0:00:30]} b5 {[%emt 0:16:07]} 11. g4 {[%emt 0:00:12]} Na6 {[%emt 0:09:21]} 12. g5 {[%emt 0:25:59]} Nh5 {[%emt 0:02:24]} 13. Bd2 {[%emt 0:00:44]} h6 {[%emt 0:11:48]} 14. Ng3 {[%emt 0:10:50]} hxg5 {[%emt 0:01:33]} 15. Bxb5+ {[%emt 0:03:42]} Kf8 {[%emt 0:01:11]} 16. Nxh5 {[%emt 0:04:47]} Rxh5 {[%emt 0:00:07]} 17. Qe2 {[%emt 0:03:31]} Nc7 {[%emt 0:04:01]} 18. Bc6 {[%emt 0:02:36]} Rb8 {[%emt 0:00:46]} 19. O-O {[%emt 0:07:53]} Qa6 {[%emt 0:06:34]} 20. Nc4 {[%emt 0:03:18]} Bf6 {[%emt 0:09:45]} 21. Rfe1 {[%emt 0:08:14]} Be6 {[%emt 0:05:12]} 22. Ne3 {[%emt 0:05:38]} Qxe2 {[%emt 0:00:39]} 23. Rxe2 {[%emt 0:00:05]} Bc8 {[%emt 0:03:09]} 24. b3 {[%emt 0:01:54]} Ba6 {[%emt 0:01:04]} 25. Ree1 {[%emt 0:01:19]} Bb5 {[%emt 0:01:37]} 26. Bxb5 {[%emt 0:01:54]} Nxb5 {[%emt 0:00:04]} 27. Rac1 {[%emt 0:00:06]} g6 {[%emt 0:01:46]} 28. a4 {[%emt 0:03:44]} Nc7 {[%emt 0:03:21]} 29. b4 {[%emt 0:01:00]} Be5 {[%emt 0:01:37]} 30. Ng4 {[%emt 0:01:49]} Bg7 {[%emt 0:00:06]} 31. bxc5 {[%emt 0:02:06]} dxc5 {[%emt 0:03:08]} 32. c4 {[%emt 0:01:24]} f5 {[%emt 0:02:02]} 33. Ne5 {[%emt 0:03:07]} Rb2 {[%emt 0:00:10]} 34. Rcd1 {[%emt 0:00:53]} Ne8 {[%emt 0:00:37]} 35. Nxg6+ {[%emt 0:01:17]} Kf7 {[%emt 0:00:05]} 36. Re7+ {[%emt 0:00:17]} Kxg6 {[%emt 0:00:04]} 37. Rxe8 {[%emt 0:00:03]} Rh4 {[%emt 0:04:20]} 38. Re6+ {[%emt 0:03:44]} Kf7 {[%emt 0:00:36]} 39. Re7+ {[%emt 0:01:55]} Kxe7 {[%emt 0:00:29]} 40. Bxg5+ {[%emt 0:00:00]} Bf6 {[%emt 0:00:00]} 41. d6+ {[%emt 0:00:18]} Kd7 {[%emt 0:01:46]} 42. Bxf6 {[%emt 0:00:27]} Rbxh2 {[%emt 0:00:20]} 43. Bxh4 {[%emt 0:01:10]} Rxh4 {[%emt 0:00:04]} 44. Rd5 {[%emt 0:15:40]} Rxc4 {[%emt 0:00:51]} 45. Kf2 {[%emt 0:04:46]} f4 {[%emt 0:08:16]} 46. a5 {[%emt 0:01:43]} Rc2+ {[%emt 0:00:41]} 47. Ke1 {[%emt 0:00:07]} a6 {[%emt 0:00:35]} 48. Kd1 {[%emt 0:06:22]} Rf2 {[%emt 0:05:37]} 49. Rxc5 {[%emt 0:00:22]} Kxd6 {[%emt 0:00:03]} 50. Rf5 {[%emt 0:00:29]} Rxf3 {[%emt 0:00:04]} 51. Rf6+ {[%emt 0:00:07]} Ke5 {[%emt 0:00:43]} 52. Rxa6 {[%emt 0:00:05]} Rf2 {[%emt 0:00:07]} 53. Ke1 {[%emt 0:00:43]} Ra2 {[%emt 0:00:05]} 54. Rb6 {[%emt 0:01:08]} Kf5 {[%emt 0:00:29]} 55. Rb3 {[%emt 0:00:37]} Kg4 {[%emt 0:00:04]} 56. Kf1 {[%emt 0:00:15]} Rxa5 {[%emt 0:00:10]} 57. Kf2 {[%emt 0:00:16]} Ra2+ {[%emt 0:00:04]} 58. Kf1 {[%emt 0:00:08]} Rh2 {[%emt 0:00:02]} 59. Ra3 {[%emt 0:01:15]} Rb2 {[%emt 0:00:28]} 60. Rc3 {[%emt 0:00:16]} Rb5 {[%emt 0:00:02]} 61. Kg2 {[%emt 0:00:27]} Re5 {[%emt 0:00:09]} 62. Kf2 {[%emt 0:00:14]} Re6 {[%emt 0:00:04]} 63. Ra3 {[%emt 0:00:36]} Rh6 {[%emt 0:00:04]} 64. Kg2 {[%emt 0:00:19]} Rb6 {[%emt 0:00:05]} 65. Rc3 {[%emt 0:00:29]} Rb2+ {[%emt 0:00:02]} 66. Kf1 {[%emt 0:00:22]} Rh2 {[%emt 0:00:02]} 67. Kg1 {[%emt 0:00:14]} Rh3 {[%emt 0:00:02]} 68. Rxh3 {[%emt 0:00:21]} Kxh3 {[%emt 0:00:02]} 69. Kf2 {[%emt 0:00:09]} Kg4 {[%emt 0:00:01]} 70. Kg2 {[%emt 0:00:08]} f3+ {[%emt 0:00:03]} 71. Kf2 {[%emt 0:00:06]} Kf4 {[%emt 0:00:02]} 72. Kf1 {[%emt 0:00:06]} Ke3 {[%emt 0:00:01]} 73. Ke1 {[%emt 0:00:06]} f2+ {[%emt 0:00:01]} 74. Kf1 {[%emt 0:00:06]} Kf3 1/2-1/2

[Event "23rd Alekhine Master 2019"]
[Site "Voronezh"]
[Date "2019.06.19"]
[Round "7.12"]
[White "Afanasiev, Nikita"]
[Black "Grinev, Valeriy"]
[Result "1/2-1/2"]
[ECO "B42"]
[WhiteElo "2524"]
[BlackElo "2422"]
[Annotator "ChessBase"]
[PlyCount "121"]
[EventDate "2019.06.12"]
[EventType "swiss"]
[EventCountry "RUS"]
[SourceTitle "playchess.com"]
[Source "ChessBase"]
[SourceQuality "1"]
[TimeControl "40/5400+30:1800+30"]

1. e4 {[%emt 0:00:37]} c5 {[%emt 0:00:00]} 2. Nf3 {[%emt 0:00:05]} e6 {[%emt 0:00:00]} 3. d4 {[%emt 0:00:17]} cxd4 {[%emt 0:00:06]} 4. Nxd4 {[%emt 0:00:04]} a6 {[%emt 0:00:10]} 5. Bd3 {[%emt 0:00:09]} Bc5 {[%emt 0:00:11]} 6. Nb3 {[%emt 0:00:13]} Be7 {[%emt 0:00:08]} 7. Qg4 {[%emt 0:00:10]} g6 {[%emt 0:00:07]} 8. Qe2 {[%emt 0:00:25]} d6 {[%emt 0:00:10]} 9. O-O {[%emt 0:01:03]} Nd7 {[%emt 0:00:07]} 10. Nc3 {[%emt 0:00:37]} Qc7 {[%emt 0:02:18]} 11. a4 {[%emt 0:06:49]} b6 {[%emt 0:00:30]} 12. f4 {[%emt 0:03:53]} Ngf6 {[%emt 0:01:29]} 13. Be3 {[%emt 0:14:43]} Bb7 {[%emt 0:02:00]} 14. Rae1 {[%emt 0:02:44]} O-O {[%emt 0:19:30]} 15. Bd4 {[%emt 0:16:17]} Nc5 {[%emt 0:12:43]} 16. Nd2 {[%emt 0:01:53]} Nxd3 {[%emt 0:14:19]} 17. cxd3 {[%emt 0:04:23]} e5 {[%emt 0:00:23]} 18. Be3 {[%emt 0:01:42]} exf4 {[%emt 0:00:29]} 19. Bxf4 {[%emt 0:04:28]} b5 {[%emt 0:01:05]} 20. Bg5 {[%emt 0:15:28]} Qc5+ {[%emt 0:03:39]} 21. Qe3 {[%emt 0:03:04]} Qxe3+ {[%emt 0:00:30]} 22. Bxe3 {[%emt 0:00:08]} b4 {[%emt 0:04:22]} 23. Nd1 {[%emt 0:03:08]} Ng4 {[%emt 0:00:34]} 24. Bf4 {[%emt 0:00:51]} Ne5 {[%emt 0:01:24]} 25. Nf2 {[%emt 0:00:26]} Rac8 {[%emt 0:00:52]} 26. Rc1 {[%emt 0:01:34]} Rxc1 {[%emt 0:01:41]} 27. Rxc1 {[%emt 0:00:05]} Rc8 {[%emt 0:00:13]} 28. Rxc8+ {[%emt 0:04:19]} Bxc8 {[%emt 0:00:07]} 29. d4 {[%emt 0:00:24]} g5 {[%emt 0:07:36]} 30. Bxe5 {[%emt 0:10:45]} dxe5 {[%emt 0:00:10]} 31. d5 {[%emt 0:00:03]} Bc5 {[%emt 0:02:48]} 32. Kf1 {[%emt 0:00:15]} a5 {[%emt 0:02:03]} 33. Nd3 {[%emt 0:00:24]} Ba6 {[%emt 0:00:30]} 34. Ke2 {[%emt 0:00:04]} Bb6 {[%emt 0:01:19]} 35. b3 {[%emt 0:00:10]} Bd4 {[%emt 0:12:40]} 36. Nc4 {[%emt 0:02:03]} Bxc4 {[%emt 0:03:38]} 37. bxc4 {[%emt 0:00:04]} b3 {[%emt 0:00:05]} 38. Kd2 {[%emt 0:00:40]} f5 {[%emt 0:00:17]} 39. c5 {[%emt 0:00:21]} Kf7 {[%emt 0:00:38]} 40. c6 {[%emt 0:00:00]} Ke7 {[%emt 0:00:00]} 41. exf5 {[%emt 0:20:37]} e4 {[%emt 0:00:48]} 42. f6+ {[%emt 0:01:57]} Bxf6 {[%emt 0:04:31]} 43. c7 {[%emt 0:01:28]} Kd7 {[%emt 0:00:12]} 44. Nc5+ {[%emt 0:00:04]} Kxc7 {[%emt 0:00:11]} 45. Nxb3 {[%emt 0:00:47]} Kd6 {[%emt 0:00:53]} 46. Nxa5 {[%emt 0:00:04]} Kxd5 {[%emt 0:00:08]} 47. Nb3 {[%emt 0:00:04]} Kc4 {[%emt 0:03:10]} 48. Nc1 {[%emt 0:02:44]} g4 {[%emt 0:03:35]} 49. a5 {[%emt 0:01:33]} Bg5+ {[%emt 0:01:40]} 50. Ke2 {[%emt 0:01:02]} Kb5 {[%emt 0:02:32]} 51. Nb3 {[%emt 0:05:10]} h5 {[%emt 0:07:28]} 52. Nd2 {[%emt 0:02:17]} h4 {[%emt 0:00:12]} 53. Nxe4 {[%emt 0:01:01]} Bf4 {[%emt 0:00:09]} 54. h3 {[%emt 0:00:35]} gxh3 {[%emt 0:00:05]} 55. gxh3 {[%emt 0:00:03]} Bc7 {[%emt 0:00:14]} 56. Kf3 {[%emt 0:00:16]} Bxa5 {[%emt 0:00:06]} 57. Kg4 {[%emt 0:00:03]} Bd8 {[%emt 0:00:22]} 58. Ng5 {[%emt 0:00:55]} Kc6 {[%emt 0:00:10]} 59. Kxh4 {[%emt 0:00:05]} Kd7 {[%emt 0:00:07]} 60. Kh5 {[%emt 0:00:07]} Bxg5 {[%emt 0:00:13]} 61. Kxg5 {[%emt 0:00:12]} 1/2-1/2

[Event "23rd Alekhine Master 2019"]
[Site "Voronezh"]
[Date "2019.06.19"]
[Round "7.13"]
[White "Grachev, Alexey"]
[Black "Visakh N R"]
[Result "0-1"]
[ECO "B09"]
[WhiteElo "2293"]
[BlackElo "2518"]
[Annotator "ChessBase"]
[PlyCount "60"]
[EventDate "2019.06.12"]
[EventType "swiss"]
[EventCountry "RUS"]
[SourceTitle "playchess.com"]
[Source "ChessBase"]
[SourceQuality "1"]
[TimeControl "40/5400+30:1800+30"]

1. e4 {[%emt 0:00:00]} g6 {[%emt 0:00:00]} 2. d4 {[%emt 0:00:00]} Bg7 {[%emt 0:00:00]} 3. Nc3 {[%emt 0:00:00]} d6 {[%emt 0:00:00]} 4. f4 {[%emt 0:00:11]} Nf6 {[%emt 0:00:11]} 5. Nf3 {[%emt 0:00:06]} O-O {[%emt 0:00:07]} 6. Bd3 {[%emt 0:00:11]} Nc6 {[%emt 0:00:30]} 7. Be2 {[%emt 0:00:54]} d5 {[%emt 0:24:05]} 8. e5 {[%emt 0:02:15]} Ne4 {[%emt 0:00:02]} 9. O-O {[%emt 0:06:46]} Bf5 {[%emt 0:02:46]} 10. Nh4 {[%emt 0:06:26]} Nxc3 {[%emt 0:05:18]} 11. bxc3 {[%emt 0:00:12]} Be4 {[%emt 0:01:03]} 12. f5 {[%emt 0:11:59]} f6 {[%emt 0:00:46]} 13. fxg6 {[%emt 0:00:39]} fxe5 {[%emt 0:00:11]} 14. gxh7+ {[%emt 0:00:10]} Bxh7 {[%emt 0:00:12]} 15. Rxf8+ {[%emt 0:02:31]} Qxf8 {[%emt 0:00:15]} 16. Bg5 {[%emt 0:11:24]} Bf6 {[%emt 0:09:30]} 17. Bxf6 {[%emt 0:05:59]} Qxf6 {[%emt 0:00:08]} 18. Nf3 {[%emt 0:00:03]} e4 {[%emt 0:00:05]} 19. Nd2 {[%emt 0:00:12]} e5 {[%emt 0:10:54]} 20. Nb3 {[%emt 0:02:36]} Rf8 {[%emt 0:01:58]} 21. Qe1 {[%emt 0:03:38]} Qg5 {[%emt 0:06:05]} 22. Bb5 {[%emt 0:07:36]} e3 {[%emt 0:01:00]} 23. Bxc6 {[%emt 0:00:08]} bxc6 {[%emt 0:02:56]} 24. h4 {[%emt 0:19:29]} Qf4 {[%emt 0:00:44]} 25. Nc5 {[%emt 0:01:27]} exd4 {[%emt 0:17:12]} 26. cxd4 {[%emt 0:00:27]} e2 {[%emt 0:01:29]} 27. Qc3 {[%emt 0:05:06]} Qf2+ {[%emt 0:00:31]} 28. Kh2 {[%emt 0:00:31]} Qxh4+ {[%emt 0:00:04]} 29. Kg1 {[%emt 0:00:09]} Qf2+ {[%emt 0:00:03]} 30. Kh2 {[%emt 0:00:44]} Rf4 {[%emt 0:00:17]} 0-1

[Event "23rd Alekhine Master 2019"]
[Site "Voronezh"]
[Date "2019.06.19"]
[Round "7.14"]
[White "Belyakov, Bogdan"]
[Black "Ulko, Jaroslav"]
[Result "1/2-1/2"]
[ECO "A53"]
[WhiteElo "2483"]
[BlackElo "2438"]
[Annotator "ChessBase"]
[PlyCount "81"]
[EventDate "2019.06.12"]
[EventType "swiss"]
[EventCountry "RUS"]
[SourceTitle "playchess.com"]
[Source "ChessBase"]
[SourceQuality "1"]
[TimeControl "40/5400+30:1800+30"]

1. d4 {[%emt 0:00:00]} Nf6 {[%emt 0:01:30]} 2. c4 {[%emt 0:00:00]} d6 {[%emt 0:00:32]} 3. Nc3 {[%emt 0:00:00]} Nbd7 {[%emt 0:00:19]} 4. e4 {[%emt 0:00:01]} e5 {[%emt 0:00:06]} 5. Nf3 {[%emt 0:00:13]} g6 {[%emt 0:00:19]} 6. Bg5 {[%emt 0:12:25]} Bg7 {[%emt 0:03:33]} 7. d5 {[%emt 0:06:15]} O-O {[%emt 0:01:04]} 8. h3 {[%emt 0:03:58]} a5 {[%emt 0:02:37]} 9. g4 {[%emt 0:03:15]} Nc5 {[%emt 0:00:19]} 10. Nd2 {[%emt 0:00:08]} c6 {[%emt 0:00:21]} 11. Rg1 {[%emt 0:03:12]} a4 {[%emt 0:15:49]} 12. Qc2 {[%emt 0:01:15]} Bd7 {[%emt 0:01:17]} 13. Be2 {[%emt 0:01:33]} Qa5 {[%emt 0:01:48]} 14. O-O-O {[%emt 0:08:56]} cxd5 {[%emt 0:02:55]} 15. exd5 {[%emt 0:00:57]} a3 {[%emt 0:15:42]} 16. b3 {[%emt 0:00:00]} e4 {[%emt 0:07:24]} 17. Rg3 {[%emt 0:07:58]} Qb4 {[%emt 0:09:54]} 18. Re3 {[%emt 0:05:42]} Rfe8 {[%emt 0:10:57]} 19. Kb1 {[%emt 0:05:51]} Rac8 {[%emt 0:03:15]} 20. Bf4 {[%emt 0:07:33]} Na4 {[%emt 0:03:24]} 21. Nxa4 {[%emt 0:01:26]} Nxd5 {[%emt 0:00:22]} 22. Bg3 {[%emt 0:09:31]} Bxa4 {[%emt 0:02:08]} 23. Nf1 {[%emt 0:01:35]} Nxe3 {[%emt 0:02:55]} 24. Nxe3 {[%emt 0:00:07]} Bc6 {[%emt 0:00:10]} 25. Bxd6 {[%emt 0:00:10]} Qa5 {[%emt 0:00:38]} 26. c5 {[%emt 0:00:12]} Qd8 {[%emt 0:03:09]} 27. Be5 {[%emt 0:02:13]} Qh4 {[%emt 0:00:14]} 28. Bxg7 {[%emt 0:00:06]} Kxg7 {[%emt 0:00:02]} 29. Nc4 {[%emt 0:03:08]} Re7 {[%emt 0:03:01]} 30. Nd6 {[%emt 0:00:15]} Rb8 {[%emt 0:00:12]} 31. b4 {[%emt 0:02:03]} b6 {[%emt 0:02:18]} 32. b5 {[%emt 0:00:05]} bxc5 {[%emt 0:00:37]} 33. Qxc5 {[%emt 0:00:16]} Qf6 {[%emt 0:01:39]} 34. Qxa3 {[%emt 0:00:11]} Qxf2 {[%emt 0:03:08]} 35. Nf5+ {[%emt 0:01:41]} gxf5 {[%emt 0:00:28]} 36. Qxe7 {[%emt 0:00:05]} Qxe2 {[%emt 0:02:37]} 37. Qg5+ {[%emt 0:02:16]} Kf8 {[%emt 0:00:22]} 38. Qh6+ {[%emt 0:00:11]} Kg8 {[%emt 0:00:04]} 39. Qg5+ {[%emt 0:00:07]} Kf8 {[%emt 0:00:05]} 40. Qh6+ {[%emt 0:00:00]} Kg8 {[%emt 0:00:00]} 41. Qg5+ {[%emt 0:00:07]} 1/2-1/2

[Event "23rd Alekhine Master 2019"]
[Site "Voronezh"]
[Date "2019.06.20"]
[Round "8.2"]
[White "Meshkovs, Nikita"]
[Black "Pavlov, Sergey"]
[Result "1/2-1/2"]
[ECO "E04"]
[WhiteElo "2550"]
[BlackElo "2473"]
[Annotator "ChessBase"]
[PlyCount "76"]
[EventDate "2019.06.12"]
[EventType "swiss"]
[EventCountry "RUS"]
[SourceTitle "playchess.com"]
[Source "ChessBase"]
[SourceQuality "1"]
[TimeControl "40/5400+30:1800+30"]

1. d4 {[%emt 0:00:00]} Nf6 {[%emt 0:00:02]} 2. c4 {[%emt 0:00:01]} e6 {[%emt 0:00:14]} 3. g3 {[%emt 0:00:08]} d5 {[%emt 0:00:26]} 4. Nf3 {[%emt 0:00:09]} dxc4 {[%emt 0:00:28]} 5. Bg2 {[%emt 0:00:13]} Bb4+ {[%emt 0:00:17]} 6. Bd2 {[%emt 0:00:10]} a5 {[%emt 0:00:16]} 7. Qc2 {[%emt 0:00:05]} Bxd2+ {[%emt 0:00:40]} 8. Qxd2 {[%emt 0:00:09]} c6 {[%emt 0:00:42]} 9. a4 {[%emt 0:00:06]} b5 {[%emt 0:01:09]} 10. axb5 {[%emt 0:12:06]} cxb5 {[%emt 0:00:38]} 11. Qg5 {[%emt 0:00:06]} O-O {[%emt 0:00:40]} 12. Qxb5 {[%emt 0:00:08]} Ba6 {[%emt 0:00:41]} 13. Qxa5 {[%emt 0:06:21]} Bb7 {[%emt 0:01:39]} 14. Qxd8 {[%emt 0:00:20]} Rxa1 {[%emt 0:00:59]} 15. Qxf8+ {[%emt 0:05:11]} Kxf8 {[%emt 0:00:11]} 16. O-O {[%emt 0:00:06]} Ra2 {[%emt 0:01:13]} 17. Ne5 {[%emt 0:32:05]} Ba6 {[%emt 0:37:40]} 18. Nc3 {[%emt 0:05:54]} Rxb2 {[%emt 0:00:16]} 19. Ra1 {[%emt 0:00:35]} Rb3 {[%emt 0:24:28]} 20. Rc1 {[%emt 0:02:01]} Nbd7 {[%emt 0:05:00]} 21. Nc6 {[%emt 0:00:15]} Nb6 {[%emt 0:01:35]} 22. e4 {[%emt 0:00:16]} Ra3 {[%emt 0:05:12]} 23. f3 {[%emt 0:05:43]} Na4 {[%emt 0:04:26]} 24. Nd1 {[%emt 0:14:32]} Nd7 {[%emt 0:03:52]} 25. Nb4 {[%emt 0:00:51]} Bb5 {[%emt 0:00:42]} 26. Kf2 {[%emt 0:02:03]} Rb3 {[%emt 0:02:36]} 27. Nc2 {[%emt 0:03:16]} Nb2 {[%emt 0:01:00]} 28. Nxb2 {[%emt 0:00:55]} Rxb2 {[%emt 0:00:06]} 29. Ke1 {[%emt 0:02:20]} c3 {[%emt 0:03:22]} 30. Bf1 {[%emt 0:00:28]} Ba4 {[%emt 0:01:04]} 31. Ne3 {[%emt 0:00:48]} Rxh2 {[%emt 0:00:38]} 32. Rxc3 {[%emt 0:00:51]} Rb2 {[%emt 0:00:24]} 33. Be2 {[%emt 0:04:43]} Ke7 {[%emt 0:01:35]} 34. d5 {[%emt 0:00:32]} Rb3 {[%emt 0:00:44]} 35. Kd2 {[%emt 0:02:04]} Rb2+ {[%emt 0:00:09]} 36. Ke1 {[%emt 0:00:04]} Rb3 {[%emt 0:00:03]} 37. Kd2 {[%emt 0:00:35]} Rb2+ {[%emt 0:00:06]} 38. Ke1 {[%emt 0:00:05]} Rb3 1/2-1/2

[Event "23rd Alekhine Master 2019"]
[Site "Voronezh"]
[Date "2019.06.20"]
[Round "8.3"]
[White "Ruiz Castillo, Joshua Daniel"]
[Black "Utegaliyev, Azamat"]
[Result "1/2-1/2"]
[ECO "C88"]
[WhiteElo "2472"]
[BlackElo "2495"]
[Annotator "ChessBase"]
[PlyCount "115"]
[EventDate "2019.06.12"]
[EventType "swiss"]
[EventCountry "RUS"]
[SourceTitle "playchess.com"]
[Source "ChessBase"]
[SourceQuality "1"]
[TimeControl "40/5400+30:1800+30"]

1. e4 {[%emt 0:00:00]} e5 {[%emt 0:01:38]} 2. Nf3 {[%emt 0:00:00]} Nc6 {[%emt 0:00:05]} 3. Bb5 {[%emt 0:00:00]} a6 {[%emt 0:00:29]} 4. Ba4 {[%emt 0:00:00]} Nf6 {[%emt 0:00:06]} 5. O-O {[%emt 0:00:00]} Be7 {[%emt 0:00:06]} 6. Re1 {[%emt 0:00:24]} b5 {[%emt 0:00:22]} 7. Bb3 {[%emt 0:00:04]} O-O {[%emt 0:00:07]} 8. a4 {[%emt 0:06:17]} Bb7 {[%emt 0:05:16]} 9. d3 {[%emt 0:06:18]} d6 {[%emt 0:01:56]} 10. Na3 {[%emt 0:05:04]} Nd4 {[%emt 0:10:30]} 11. Nxd4 {[%emt 0:09:33]} exd4 {[%emt 0:00:06]} 12. c3 {[%emt 0:00:56]} dxc3 {[%emt 0:02:18]} 13. bxc3 {[%emt 0:00:16]} c5 {[%emt 0:00:24]} 14. Rb1 {[%emt 0:01:19]} Bc6 {[%emt 0:04:44]} 15. Bc2 {[%emt 0:02:45]} b4 {[%emt 0:08:04]} 16. cxb4 {[%emt 0:01:04]} cxb4 {[%emt 0:00:04]} 17. Nc4 {[%emt 0:01:03]} d5 {[%emt 0:00:06]} 18. Ne5 {[%emt 0:01:53]} Bb7 {[%emt 0:00:14]} 19. Bb2 {[%emt 0:00:15]} Rc8 {[%emt 0:03:44]} 20. f3 {[%emt 0:04:24]} Qc7 {[%emt 0:25:08]} 21. Bb3 {[%emt 0:02:10]} Bd6 {[%emt 0:00:25]} 22. Rc1 {[%emt 0:00:42]} Qb6+ {[%emt 0:03:58]} 23. Kh1 {[%emt 0:00:14]} Qf2 {[%emt 0:03:38]} 24. Rxc8 {[%emt 0:12:37]} Rxc8 {[%emt 0:00:06]} 25. Qa1 {[%emt 0:00:33]} Qh4 {[%emt 0:09:58]} 26. g3 {[%emt 0:00:13]} Qh3 {[%emt 0:01:16]} 27. Kg1 {[%emt 0:13:40]} h5 {[%emt 0:01:42]} 28. Re2 {[%emt 0:00:53]} Re8 {[%emt 0:03:00]} 29. f4 {[%emt 0:07:07]} Re7 {[%emt 0:03:29]} 30. exd5 {[%emt 0:02:55]} Bxd5 {[%emt 0:01:14]} 31. Bxd5 {[%emt 0:00:03]} Nxd5 {[%emt 0:00:03]} 32. Qf1 {[%emt 0:00:04]} Qf5 {[%emt 0:02:50]} 33. Qf3 {[%emt 0:13:05]} Nc3 {[%emt 0:00:15]} 34. Bxc3 {[%emt 0:00:13]} bxc3 {[%emt 0:00:02]} 35. Qd5 {[%emt 0:01:17]} Ba3 {[%emt 0:02:31]} 36. Rc2 {[%emt 0:01:30]} Qc8 {[%emt 0:02:12]} 37. Kg2 {[%emt 0:00:43]} h4 {[%emt 0:01:25]} 38. Qb3 {[%emt 0:00:51]} h3+ {[%emt 0:02:43]} 39. Kf3 {[%emt 0:00:29]} Qa8+ {[%emt 0:01:22]} 40. Kg4 {[%emt 0:00:00]} Qc8+ {[%emt 0:00:00]} 41. Kf3 {[%emt 0:00:10]} Bb2 {[%emt 0:11:13]} 42. Qd5 {[%emt 0:03:52]} Qb7 {[%emt 0:05:10]} 43. Qxb7 {[%emt 0:04:41]} Rxb7 {[%emt 0:00:02]} 44. Nc4 {[%emt 0:00:16]} Kf8 {[%emt 0:03:13]} 45. Ke2 {[%emt 0:04:38]} Rb4 {[%emt 0:03:56]} 46. a5 {[%emt 0:00:00]} Ra4 {[%emt 0:02:13]} 47. Nxb2 Ra2 48. Rxc3 {[%emt 0:00:30]} Rxb2+ {[%emt 0:00:34]} 49. Kf3 {[%emt 0:00:02]} Rxh2 {[%emt 0:02:51]} 50. Rc6 {[%emt 0:02:49]} Rh1 {[%emt 0:00:35]} 51. Kg4 {[%emt 0:00:16]} h2 52. Kh3 Ra1 {[%emt 0:00:48]} 53. Kxh2 {[%emt 0:00:31]} Rxa5 {[%emt 0:00:05]} 54. Rc7 {[%emt 0:00:02]} Rd5 {[%emt 0:05:52]} 55. Ra7 {[%emt 0:00:03]} Rd6 {[%emt 0:00:04]} 56. Kg2 {[%emt 0:00:19]} g6 {[%emt 0:00:20]} 57. Kf2 {[%emt 0:00:32]} Rxd3 {[%emt 0:00:25]} 58. Rxa6 {[%emt 0:00:06]} 1/2-1/2

[Event "23rd Alekhine Master 2019"]
[Site "Voronezh"]
[Date "2019.06.20"]
[Round "8.4"]
[White "Kryakvin, Dmitry"]
[Black "Shariyazdanov, Andrey"]
[Result "1-0"]
[ECO "A37"]
[WhiteElo "2586"]
[BlackElo "2526"]
[Annotator "ChessBase"]
[PlyCount "69"]
[EventDate "2019.06.12"]
[EventType "swiss"]
[EventCountry "RUS"]
[SourceTitle "playchess.com"]
[Source "ChessBase"]
[SourceQuality "1"]
[TimeControl "40/5400+30:1800+30"]

1. Nf3 {[%emt 0:00:00]} c5 {[%emt 0:00:00]} 2. g3 {[%emt 0:00:00]} Nc6 {[%emt 0:00:18]} 3. Bg2 {[%emt 0:00:00]} g6 {[%emt 0:01:12]} 4. c4 {[%emt 0:00:02]} Bg7 {[%emt 0:00:08]} 5. Nc3 {[%emt 0:00:05]} e6 {[%emt 0:00:45]} 6. h4 {[%emt 0:00:26]} Nf6 {[%emt 0:01:35]} 7. d4 {[%emt 0:02:48]} cxd4 {[%emt 0:00:43]} 8. Nxd4 {[%emt 0:00:07]} d5 {[%emt 0:02:13]} 9. cxd5 {[%emt 0:04:27]} exd5 {[%emt 0:03:53]} 10. Nb3 {[%emt 0:12:13]} O-O {[%emt 0:15:07]} 11. Bg5 {[%emt 0:08:07]} h6 {[%emt 0:06:50]} 12. Bf4 {[%emt 0:04:17]} Be6 {[%emt 0:12:01]} 13. O-O {[%emt 0:08:19]} d4 {[%emt 0:01:41]} 14. Nb5 {[%emt 0:02:01]} Nd5 {[%emt 0:01:49]} 15. Bd6 {[%emt 0:04:06]} Re8 {[%emt 0:00:27]} 16. Bc5 {[%emt 0:00:39]} Qd7 {[%emt 0:07:48]} 17. Ba3 {[%emt 0:12:51]} a6 {[%emt 0:17:40]} 18. Nc5 {[%emt 0:04:13]} Qd8 {[%emt 0:02:13]} 19. Nxb7 {[%emt 0:08:11]} Qb6 {[%emt 0:05:23]} 20. N5d6 {[%emt 0:00:19]} Reb8 {[%emt 0:04:41]} 21. Nc5 {[%emt 0:01:10]} Ncb4 {[%emt 0:00:13]} 22. Nxe6 {[%emt 0:01:10]} fxe6 {[%emt 0:00:22]} 23. Ne4 {[%emt 0:02:29]} Rd8 {[%emt 0:01:25]} 24. Qb3 {[%emt 0:02:53]} Rab8 {[%emt 0:00:07]} 25. Rac1 {[%emt 0:00:57]} a5 {[%emt 0:01:20]} 26. Bh3 {[%emt 0:02:30]} Kh7 {[%emt 0:00:19]} 27. Nc5 {[%emt 0:00:38]} e5 {[%emt 0:00:20]} 28. Nd7 {[%emt 0:03:59]} Rxd7 {[%emt 0:00:04]} 29. Bxd7 {[%emt 0:00:04]} Qd6 {[%emt 0:00:14]} 30. Bc6 {[%emt 0:01:37]} Nf6 {[%emt 0:00:05]} 31. Bxb4 {[%emt 0:00:47]} Rxb4 {[%emt 0:00:34]} 32. Qc2 {[%emt 0:00:05]} d3 {[%emt 0:04:00]} 33. Qxd3 {[%emt 0:02:07]} Rd4 {[%emt 0:00:09]} 34. Qa3 {[%emt 0:00:54]} Qe6 {[%emt 0:02:04]} 35. Bg2 {[%emt 0:00:21]} 1-0